Cogmind - Beta 10.2 @@@ ROGUE MODE // 2021.06.10 @ 08:03:44 Player: Exp. Geonium Core Result: Destroyed by H-55 Commando with Gauss Rifle Performance ------------- Evolutions (3) 1500 Regions Visited (6) 1200 Robots Destroyed (22) 110 Value Destroyed (346) 346 Prototype IDs (2) 40 Alien Tech Used (0) 0 Bonus (0) 0 TOTAL SCORE: 3196 Bonus ------- None Cogmind --------- Core Integrity 0/700 Matter 290/300 Energy 100/100 System Corruption 1% Temperature Cool (0) Movement Core (50) Location -7/Factory Parts ------- > --- POWER (2) -------- (None) > --- PROPULSION (4) --- (None) > --- UTILITY (5) ------ Weight Redist. System Terrain Scan Processor Advanced Terrain Scan Processor System Shield > --- WEAPON (2) ------- Power Maul > --- INVENTORY (4) ---- Improved Medium Armor Plating Improved Medium Armor Plating Improved Medium Armor Plating Peak State ------------ > --- POWER ------------ Light Ion Engine > --- PROPULSION ------- Wheel Gravmag System Cesium-ion Thruster Cooled VTOL Module > --- UTILITY ---------- Weight Redist. System Advanced Weight Redist. System Terrain Scan Processor Advanced Terrain Scan Processor System Shield > --- WEAPON ----------- Power Maul Great Axe > --- INVENTORY -------- Improved Medium Armor Plating Improved Medium Armor Plating Improved Medium Armor Plating Power Maul [Rating: 37] Favorites ----------- Power Light Ion Engine Engine Light Ion Engine Power Core Light Nuclear Core Propulsion Wheel Treads Light Treads Leg Aluminum Leg Wheel Wheel Hover Unit Gravmag System Flight Unit Cooled VTOL Module Utility System Shield Device Weight Redist. System Storage High-capacity Storage Unit Processor Terrain Scan Processor Hackware System Shield Protection Hardened Light Armor Plating Weapon Power Maul Impact Weapon Power Maul Slashing Weapon Great Axe Special Melee Weapon Datajack Build | -11 -10 -9 -8 -7 -7 -7 ------- Run | Scr Mat Mat Mat Fac Was Fac Slots Evolved 6 | . . 2 2 2 . . Power 1 | . . . . 1 . . Propulsion 2 | . . . 2 . . . Utility 3 | . . 2 . 1 . . Weapon . | . . . . . . . Parts Attached 34 | 2 1 4 1 10 2 14 Power 2 | . . . . 2 . . Engine 1 | . . . . 1 . . Core 1 | . . . . 1 . . Reactor . | . . . . . . . Propulsion 17 | 2 . 2 . 2 2 9 Treads 4 | 2 . . . . . 2 Leg 6 | . . 2 . . 1 3 Wheel 3 | . . . . 2 . 1 Hover 2 | . . . . . . 2 Flight 2 | . . . . . 1 1 Utility 10 | . . 2 1 4 . 3 Device 3 | . . . . 1 . 2 Storage 1 | . . . . 1 . . Processor 3 | . . 1 . 1 . 1 Hackware 2 | . . . 1 1 . . Protection 1 | . . 1 . . . . Artifact . | . . . . . . . Weapon 5 | . 1 . . 2 . 2 Energy Gun . | . . . . . . . Energy Cannon . | . . . . . . . Ballistic Gun . | . . . . . . . Ballistic Cannon . | . . . . . . . Launcher . | . . . . . . . Special Weapon . | . . . . . . . Impact Weapon 3 | . . . . 2 . 1 Slashing Weapon 1 | . . . . . . 1 Piercing Weapon . | . . . . . . . Special Melee Weapon 1 | . 1 . . . . . Unidentified Prototypes 2 | . . . . . 1 1 Parts Lost 19 | . 3 2 . 1 1 12 Power 1 | . . . . . . 1 Propulsion 13 | . 2 2 . 1 1 7 Utility 2 | . . . . . . 2 Weapon 3 | . 1 . . . . 2 Highest Loss Streak 8 | . 3 2 . 1 1 8 Average Slot Usage (%) 56 | . 27 26 13 63 82 70 Engine 3 | . . . . 3 7 5 Treads 3 | . 26 . . . . 1 Leg 3 | . . 13 . . 6 2 Wheel 3 | . . . . 8 6 2 Hover 1 | . . . . . . 2 Flight 2 | . . . . . . 6 Device 3 | . . . . 3 . 7 Storage 1 | . . . . 3 6 . Processor 11 | . . 8 9 14 15 15 Hackware 9 | . . . 4 13 15 11 Impact Weapon 6 | . . . . 12 14 6 Slashing Weapon 1 | . . . . . . 4 Naked Turns 39 | . 3 36 . . . . Heaviest Build 46 | . 1 5 . 46 46 10 Greatest Support 40 | 40 40 20 3 20 10 20 Greatest Overweight (x) 4 | . . 1 . 4 4 2 Average Overweight (x) . | . . . . 1 3 . Largest Inventory Capacity 12 | 4 4 4 4 12 12 4 Average Capacity 5 | 4 4 4 4 7 11 4 Most Carried 7 | . . 1 4 7 7 4 Average Carried 3 | . . . 2 4 6 3 Final Capacity 12 | 4 4 4 4 12 4 4 Final Carried 7 | . . 1 4 7 4 3 Class Distribution -------------------- 52% | Hacker-Mutant 47% | Mutant Dominant Class ---------------- Mutant | -10/Materials Mutant | -9/Materials Mutant | -8/Materials Hacker-Mutant | -7/Factory Hacker-Mutant | -7/Waste Hacker-Mutant | -7/Factory Resources | -11 -10 -9 -8 -7 -7 -7 ----------- Run | Scr Mat Mat Mat Fac Was Fac Matter Collected 476 | 219 1 . . 138 . 118 Remotely . | . . . . . . . Salvage Created 874 | . 19 . . 212 . 643 Parts 26 | . 1 . . 5 . 20 Haulers Intercepted 1 | . . . . . . 1 Recyclers Shooed 2 | . . . . . . 2 Parts Field Recycled . | . . . . . . . Retrieved Matter . | . . . . . . . Parts Self-Destructed . | . . . . . . . Prevented . | . . . . . . . Kills | -11 -10 -9 -8 -7 -7 -7 ------- Run | Scr Mat Mat Mat Fac Was Fac Combat Hostiles Destroyed 6 | . 2 . . . . 4 Melee 5 | . 2 . . . . 3 Classes Destroyed 9 | . 2 . . 3 . 4 Worker 4 | . . . . 2 . 2 Tunneler 3 | . . . . 1 . 2 Hauler 1 | . . . . . . 1 Recycler 6 | . . . . 2 . 4 Mechanic 1 | . . . . . . 1 Watcher 1 | . . . . . . 1 Swarmer 1 | . 1 . . . . . Grunt 4 | . 1 . . . . 3 Programmer 1 | . . . . . . 1 Best Kill Streak 5 | . 2 . . 3 . 5 Combat Bots Only 2 | . 2 . . . . 2 Max Kills in Single Turn 1 | . 1 . . 1 . 1 Gunslinging . | . . . . . . . Exploded . | . . . . . . . Melee 1 | . 1 . . . . 1 Uniques/NPCs Destroyed . | . . . . . . . Combat | -11 -10 -9 -8 -7 -7 -7 -------- Run | Scr Mat Mat Mat Fac Was Fac Damage Taken 2607 | . 418 525 15 232 40 1377 Core 1068 | . 117 222 15 31 40 643 Absorbed by Shields . | . . . . . . . Core Remaining (%) 73 | 100 53 44 97 . . . Volleys Fired . | . . . . . . . Largest . | . . . . . . . Hottest . | . . . . . . . Shots Fired . | . . . . . . . Gun . | . . . . . . . Cannon . | . . . . . . . Launcher . | . . . . . . . Special . | . . . . . . . Kinetic . | . . . . . . . Thermal . | . . . . . . . Explosive . | . . . . . . . Electromagnetic . | . . . . . . . Robot Hit Streak . | . . . . . . . Robot Miss Streak . | . . . . . . . Penetration Max . | . . . . . . . Secondary Targets . | . . . . . . . Shots Hit Robots 41 | . . . . 5 . 36 Core Hits 11 | . 2 . . 1 . 8 Critical Hits 1 | . . . . . . 1 Critical Kills 1 | . . . . . . 1 Critical Parts Destroyed . | . . . . . . . Melee Attacks 54 | . . . . 5 . 49 Impact 47 | . . . . 5 . 42 Slashing 7 | . . . . . . 7 Piercing . | . . . . . . . Sneak Attacks 14 | . . . . 5 . 9 Combat Hostiles . | . . . . . . . Follow-up Attacks 5 | . . . . . . 5 Damage Inflicted 2199 | . 5 3 . 454 . 1737 Guns . | . . . . . . . Cannons . | . . . . . . . Explosions . | . . . . . . . Melee 2191 | . . . . 454 . 1737 Ramming 8 | . 5 3 . . . . Kinetic . | . . . . . . . Thermal . | . . . . . . . Explosive . | . . . . . . . Electromagnetic . | . . . . . . . Impact 2045 | . . . . 454 . 1591 Slashing 146 | . . . . . . 146 Piercing . | . . . . . . . Highest Corruption 1 | . . . . . . 1 Average Corruption 1 | . . . . . . 1 Corruption Purged . | . . . . . . . Effects 2 | . . . . . . 2 Message Errors 1 | . . . . . . 1 Targeting Errors 1 | . . . . . . 1 Overload Shots . | . . . . . . . Overflow Damage 780 | . . . . 245 . 535 Projectiles . | . . . . . . . Explosions . | . . . . . . . Melee 780 | . . . . 245 . 535 Knockbacks 13 | . . . . 3 . 10 Impact 13 | . . . . 3 . 10 Kinetic . | . . . . . . . Secondary . | . . . . . . . Self-Inflicted Damage . | . . . . . . . Shots . | . . . . . . . Rammed 5 | . 5 . . . . . Targets Rammed 8 | . 7 1 . . . . Kicked 1 | . . 1 . . . . Crushed 2 | . 2 . . . . . Highest Temperature . | . . . . . . . Average Temperature . | . . . . . . . Received Heat Transfer 699 | . 78 138 9 . . 474 Siege Activations . | . . . . . . . Robots Corrupted . | . . . . . . . Combat Hostiles . | . . . . . . . Parts Fried 17 | . . . . 8 . 9 Impact Corruptions 28 | . . . . 8 . 20 Robots Melted . | . . . . . . . Combat Hostiles . | . . . . . . . Parts Melted . | . . . . . . . Heat Transferred . | . . . . . . . Parts Sabotaged . | . . . . . . . Parts Stolen . | . . . . . . . Parts Stripped . | . . . . . . . Power Chain Reactions . | . . . . . . . Missiles Intercepted . | . . . . . . . Alert | -11 -10 -9 -8 -7 -7 -7 ------- Run | Scr Mat Mat Mat Fac Was Fac Peak Influence 157 | . 90 114 123 70 24 157 Initial 55 | . . 29 48 55 24 9 Average 53 | . 16 55 87 64 23 68 Maximum Alert Level . | . . . . . . . Low Security (%) 100 | 100 100 100 100 100 100 100 Level 1 . | . . . . . . . Level 2 . | . . . . . . . Level 3 . | . . . . . . . Level 4 . | . . . . . . . Level 5 . | . . . . . . . High Security . | . . . . . . . Max Security . | . . . . . . . Squads Dispatched 11 | . 2 1 . . . 8 Investigation 2 | . 1 . . . . 1 Extermination 2 | . . . . . . 2 Reinforcement 6 | . 1 1 . . . 4 Assault . | . . . . . . . Garrison 1 | . . . . . . 1 Intercept . | . . . . . . . Construction Impeded . | . . . . . . . Haulers Reinforced 1 | . . . . . . 1 Stealth | -11 -10 -9 -8 -7 -7 -7 --------- Run | Scr Mat Mat Mat Fac Was Fac Distress Signals 2 | . 1 1 . . . . Communications Jammed . | . . . . . . . Distress Signals . | . . . . . . . Times Spotted 58 | . 14 16 1 . 5 22 Peak Tracking Total 11 | . 9 11 4 . 5 6 Tactical Retreats 7 | . 1 1 3 . . 2 Traps | -11 -10 -9 -8 -7 -7 -7 ------- Run | Scr Mat Mat Mat Fac Was Fac Traps Triggered 3 | . 1 . . 2 . . Indirectly . | . . . . . . . Trap Hack Attempts . | . . . . . . . Triggered . | . . . . . . . Disarmed . | . . . . . . . Reprogrammed . | . . . . . . . Reused . | . . . . . . . Traps Extracted . | . . . . . . . Installed . | . . . . . . . Triggered . | . . . . . . . Machines | -11 -10 -9 -8 -7 -7 -7 ---------- Run | Scr Mat Mat Mat Fac Was Fac Machines Disabled . | . . . . . . . Max in Single Turn . | . . . . . . . Machines Sabotaged . | . . . . . . . Garrisons Compromised . | . . . . . . . Overloaded Fab Kills . | . . . . . . . Fab Network Shutdowns . | . . . . . . . Hacking | -11 -10 -9 -8 -7 -7 -7 --------- Run | Scr Mat Mat Mat Fac Was Fac Machines Accessed 6 | . 1 . 1 . . 4 Terminals 5 | . 1 . 1 . . 3 Fabricators . | . . . . . . . Repair Stations . | . . . . . . . Recycling Units . | . . . . . . . Scanalyzers . | . . . . . . . Garrison Access 1 | . . . . . . 1 Total Hacks 18 | . 2 . 2 . . 14 Successful 6 | . 1 . 1 . . 4 Failed 12 | . 1 . 1 . . 10 Catastrophic 1 | . . . . . . 1 Database Lockouts . | . . . . . . . Manual 8 | . 1 . 2 . . 5 Terminals 15 | . 2 . 2 . . 11 Fabricators . | . . . . . . . Repair Stations . | . . . . . . . Recycling Units . | . . . . . . . Scanalyzers . | . . . . . . . Garrison Access 3 | . . . . . . 3 Terminal Hacks 5 | . 1 . 1 . . 3 Record 1 | . . . . . . 1 Part Schematic 2 | . 1 . 1 . . . Fabricator Index 1 | . . . . . . 1 Locate Traps 1 | . . . . . . 1 Fabricator Hacks . | . . . . . . . Repair Station Hacks . | . . . . . . . Recycling Unit Hacks . | . . . . . . . Scanalyzer . | . . . . . . . Garrison Access Hacks . | . . . . . . . Unauthorized Hacks 1 | . . . . . . 1 Terminals 1 | . . . . . . 1 Botnet 1 | . . . . . . 1 Fabricators . | . . . . . . . Repair Stations . | . . . . . . . Recycling Units . | . . . . . . . Scanalyzers . | . . . . . . . Garrison Access . | . . . . . . . Data Cores Recovered . | . . . . . . . Used . | . . . . . . . Hacking Detections 6 | . 1 . 1 . . 4 Full Trace Events 1 | . . . . . . 1 Feedback Events . | . . . . . . . Feedback Blocked . | . . . . . . . Robot Schematics Acquired . | . . . . . . . Robots Built . | . . . . . . . Matter . | . . . . . . . Time . | . . . . . . . Total Robot Build Rating . | . . . . . . . Part Schematics Acquired 1 | . 1 . . . . . Parts Built . | . . . . . . . Matter . | . . . . . . . Time . | . . . . . . . Total Part Build Rating . | . . . . . . . Parts Repaired . | . . . . . . . Time . | . . . . . . . Parts Recycled . | . . . . . . . Recycled Matter . | . . . . . . . Retrieved Matter . | . . . . . . . Retrieved Components . | . . . . . . . Parts Scanalyzed . | . . . . . . . Part Schematics Acquired . | . . . . . . . Parts Damaged . | . . . . . . . Bothacking | -11 -10 -9 -8 -7 -7 -7 ------------ Run | Scr Mat Mat Mat Fac Was Fac Used RIF Installer . | . . . . . . . Robots Hacked . | . . . . . . . Non-combat . | . . . . . . . Combat . | . . . . . . . Robot Hacks Applied . | . . . . . . . Relay Couplers Released . | . . . . . . . Robots Rewired . | . . . . . . . Allies Hacked . | . . . . . . . Hacks Repelled . | . . . . . . . Allies | -11 -10 -9 -8 -7 -7 -7 -------- Run | Scr Mat Mat Mat Fac Was Fac Total Allies . | . . . . . . . Largest Group . | . . . . . . . Highest-Rated Group . | . . . . . . . Highest-Rated Ally . | . . . . . . . Total Orders . | . . . . . . . Ally Attacks . | . . . . . . . Total Damage . | . . . . . . . Kills . | . . . . . . . Allies Corrupted . | . . . . . . . Allies Melted . | . . . . . . . Intel | -11 -10 -9 -8 -7 -7 -7 ------- Run | Scr Mat Mat Mat Fac Was Fac Robot Analysis Total . | . . . . . . . Derelict Logs Recovered . | . . . . . . . Drone Launches . | . . . . . . . Drone Recoveries . | . . . . . . . Exploration | -11 -10 -9 -8 -7 -7 -7 ------------- Run | Scr Mat Mat Mat Fac Was Fac Turns Passed 1640 | 43 186 205 91 264 199 652 Spaces Moved 1802 | 28 172 285 165 228 176 748 Core 824 | 3 93 279 165 93 . 191 Treads 133 | 25 79 . . . . 29 Legs 9 | . . 6 . . . 3 Wheels 389 | . . . . 135 136 118 Hover 151 | . . . . . . 151 Flight 296 | . . . . . 40 256 Fastest Speed 32 | 50 50 50 50 50 32 35 Average Speed 75 | 148 100 64 50 92 101 64 Slowest Speed 170 | 160 160 120 50 150 120 170 Overloaded Moves 38 | . . . . . 38 . Propulsion Burnouts . | . . . . . . . Robots Hopped 2 | . . . . . 2 . Cave-ins Triggered . | . . . . . . . Exploration Rate (%) 30 | 3 40 33 19 8 78 30 Regions Visited 6 Branch Regions . Pre-discovered Areas . | . . . . . . . Known Exits Taken . | . . . . . . . Unknown Exits Taken 4 | 1 1 1 1 . . . Scrap Searched . | . . . . . . . Spaces Dug 4 | . . . . . . 4 Terrain Destroyed 4 | . . . . . . 4 Melee 4 | . . . . . . 4 Projectile . | . . . . . . . AOE . | . . . . . . . Terrain Rammed . | . . . . . . . Walls Destroyed . | . . . . . . . Machines Disabled . | . . . . . . . Actions | -11 -10 -9 -8 -7 -7 -7 --------- Run | Scr Mat Mat Mat Fac Was Fac Total 1994 | 29 179 302 172 271 195 846 Wait 89 | . . 12 4 22 17 34 Move 1794 | 27 171 284 164 228 172 748 Hop 1 | . . . . . 1 . Pick Up 10 | . . . 3 5 . 2 Fast Attach 30 | 2 1 4 1 8 1 13 Attach 3 | . . . . 1 1 1 Detach 1 | . . 1 . . . . Swap 1 | . . . . 1 . . Drop 10 | . . . . 1 3 6 Fire . | . . . . . . . Melee 47 | . . . . 5 . 42 Ram . | . . . . . . . Kick 1 | . . 1 . . . . Crush 7 | . 7 . . . . . Escape Stasis . | . . . . . . . Rewire . | . . . . . . . Trap . | . . . . . . . Miscellaneous . | . . . . . . . Route ------- -11/Scrapyard -10/Materials (discovered 2 exits: *Mat / [*Min]) -9/Materials (discovered 2 exits: *Mat / [*Min]) -8/Materials -7/Factory -7/Waste -7/Factory History --------- Turn | Location | Event 16 | -11/Scrapyard | Discovered new exit (range 14) 44 | -11/Scrapyard | Entered Materials 188 | -10/Materials | Discovered new exit (range 16) 222 | -10/Materials | Discovered new exit (range 16) 230 | -10/Materials | Entered another Materials area 230 | -9/Materials | Evolved 2 slots: Utility x2 258 | -9/Materials | Lost 3 parts (2n1w) 307 | -9/Materials | Build established: Mutant 397 | -9/Materials | Discovered new exit (range 16) 427 | -9/Materials | Discovered new exit (range 16) 433 | -9/Materials | Core integrity fell below 50% 435 | -9/Materials | Entered another Materials area 435 | -8/Materials | Evolved 2 slots: Propulsion x2 489 | -8/Materials | Discovered new exit (range 4) 526 | -8/Materials | Entered Factory 526 | -7/Factory | Evolved 2 slots: Power x1, Utility x1 790 | -7/Factory | Sucked down chute 790 | -7/Factory | Entered Waste 790 | -7/Waste | Spotted C-40 Crusher 803 | -7/Waste | Spotted C-40 Crusher 806 | -7/Waste | Spotted C-40 Crusher 817 | -7/Waste | Spotted C-40 Crusher 829 | -7/Waste | Spotted C-40 Crusher 871 | -7/Waste | Build established: Hacker-Mutant 877 | -7/Waste | Discovered new exit (range 10) 971 | -7/Waste | Crushed by Compactor (1 part destroyed, 1 dropped) 986 | -7/Waste | Spotted C-40 Crusher 989 | -7/Waste | Entered Factory 1565 | -7/Factory | Core integrity fell below 50% 1571 | -7/Factory | Garrison activated, responded to threat 1575 | -7/Factory | Core integrity fell below 20% 1619 | -7/Factory | Lost 8 parts (1p5n2w) 1641 | -7/Factory | Destroyed by H-55 Commando with Gauss Rifle Last Messages --------------- 01571_ ALERT: Activating Garrison Access F003. 01571_ Cld. VTOL Module destroyed. 01572_ G-47 Trooper emerges from the garrison. 01572_ Great Axe destroyed. 01576_ Y-54 Guardian destroyed. 01576_ Acquired Aluminum Leg. 01578_ Power Maul destroyed. 01578_ Acquired 5 matter. 01580_ Acquired Aluminum Leg. 01583_ Acquired Lgt. Treads. 01587_ Subcomponent Replicator disabled. 01588_ Aluminum Leg destroyed. 01616_ O-16 Technician: "IFF HANDSHAKE FAILED. SECURING TERMINAL." 01620_ Aluminum Leg destroyed. 01626_ ALERT: Hostiles spotted, dispatching reinforcements to Terminal F005. 01626_ Adv. Weight Redist. System destroyed. 01634_ Lgt. Treads destroyed. 01637_ H-55 Commando knocked back. 01638_ Penetrated by Slug. Map ----- +----------------------------------------------------+ | ?????????????????????????????????????????????????? | | ?????????????????????????????????????????????????? | | ?????????????????????????????????????????????????? | | ?????????????????????????????????????????????????? | | ?????????????????????????????????????????????????? | | ?????????????????????????????????????????????????? | | ?????????????????????????????????????????????????? | | ?????????????????????????????????????????????????? | | ?????????????????????????????????????????????????? | | ?????????????????????????????????????????????????? | | ?????????????????????????????????????????????????? | | ?????????????????????????????????????????????????? | | ?????????????????????????????????????????????????? | | ?????????????????????????????????????????????????? | | ?????????????????????????????????????????????????? | | ?????????????????????????????????????????????????? | | ?????????????????????????????????????????????????? | | ?????????????????????????????????????????????????? | | ?????????????????????????????????????????????????? | | ?????????????????????????????????????????????????? | | ???????????????????####+######+########??????????? | | ???????????????????# ?????????? | | ???????????????????# ?????????? | | ?????????????###???# ????????? | | ????????????? ??# ????????? | | ?????????????? ?# h@ k ????????? | | ??????????????"" ?# #########???????????????? | | ???????????????" # #???????????????????????? | | ????????????????? # #???????????????????????? | | ?????????????????? + u #???????????????????????? | | ???????????????????# #???????????????????????? | | ???????????????????# #???????????????????????? | | ???????????????????# #???????????????????????? | | ???????????????????# #???????????????????????? | | ???????????????????# #???????????????????????? | | ???????????????????# #???????????????????????? | | ???????????????????# #???????????????????????? | | ???????????????????# #???????????????????????? | | ???????????????????# #???????????????????????? | | ???????????????????# #??????##???????????????? | | ?????????????#"""#?# #???? ??????????????? | | ????????????##"Y"### #??"" ""???????????????? | | ????????????# # "" ""???????????????? | | ????????????# + """ "????????????????? | | ????????????# # """ "????????????????? | | ????????????# """ #??""" "????????????????? | | ????????????# """ #???? ????????????????? | | #???????????# !! """ #?????? ???????????????? | | #########+### !] "" #???????????????????????? | | !] "" #???????????????????????? | +----------------------------------------------------+ Best States ------------- Heat Dissipation 34 Energy Generation 19 Energy Capacity 185 Matter Stores 300 Matter Capacity 300 Sight Range 22 Terrain Scan Density 285 Jamming Range 8 Additional Mass Support 6 Armor Coverage 150 Evasion (%) 63 Recoil Reduction 2 Defensive Hacking 20 Item Schematics ----------------- Datajack | -10/Materials | Hacked Robot Schematics ------------------ None Fabricated ------------ Nothing Alien Tech Used ----------------- None Achievements -------------- None Challenges ------------ None Game ------ Seed NeutralizingOverloadGuard Manual? 0 Play Time 00:31:10 Cumulative 99.4 hours Start 2021.06.10 @ 07:22:07 End 2021.06.10 @ 08:03:44 Sessions 1 Manual Loads 0 Difficulty Rogue Special Mode None Game No. 151 Rogue 151 Adventurer 0 Explorer 0 Win Type - Total 3 Types 2/0/0/1/0/0/0/0/0 Lore% 48 Gallery% 66 Achievement% 56 Wizard Run 0 Options --------- ASCII 0 Keyboard 0 Movement Numpad Keybinds 0 Fullscreen 1 Font 18/Terminus Map View 76x50 Tactical HUD 1 Map Filters NONE Filters NONE Steam 1 RUN: 4d6e2fa0-ef5f-45ad-bedc-abf87d623613